bitfinex/quotes_SOLUSD_20250717
["timestamp","ask_amount","ask_price","bid_price","bid_amount"]
[1752792508380,29.58,176.4,176.37,5.81018319]
[1752792509272,29.58,176.4,176.37,11.47999754]
[1752792509462,0.56847251,176.42,176.37,5.69981435]
[1752792509671,0.56847251,176.42,176.4,5.78018319]
[1752792509870,30.14847251,176.43,176.4,5.78018319]
[1752792510576,5.78018319,176.41,176.37,0.03]
[1752792510760,6.23740675,176.4,176.37,0.03]
[1752792510959,29.58,176.39,176.37,0.03]
[1752792511369,30.14847251,176.4,176.37,0.03]
[1752792511566,30.14847251,176.4,176.37,5.81018319]
[1752792511771,29.58,176.42,176.39,5.78018319]
[1752792511976,30.14847251,176.45,176.41,5.78018319]
[1752792512174,30.14847251,176.45,176.42,5.78018319]
[1752792512590,30.14847251,176.45,176.37,0.03]
[1752792512757,35.81584491,176.45,176.41,5.78018319]
[1752792513158,35.81584491,176.45,176.4,5.78018319]
[1752792513691,5.78018319,176.44,176.38,5.78018319]
[1752792513896,52.73333967,176.43,176.37,5.81018319]
[1752792514064,52.73333967,176.43,176.38,5.78018319]
[1752792514379,46.95315648,176.43,176.38,5.78018319]
[1752792514579,52.73333967,176.43,176.37,0.03]
[1752792514778,5.78018319,176.41,176.37,0.03]
[1752792515089,30.14847251,176.4,176.37,0.03]
[1752792515681,35.9286557,176.4,176.37,0.03]
[1752792517163,5.66925562,176.39,176.37,0.03]
[1752792517364,30.14847251,176.38,176.37,0.03]
[1752792518591,0.56847251,176.4,176.37,0.03]
[1752792518883,30.14847251,176.4,176.37,0.03]
[1752792519089,30.14847251,176.4,176.37,5.81018319]
[1752792519490,30.14847251,176.4,176.37,0.03]
[1752792519795,5.78018319,176.38,176.37,0.03]
[1752792519978,35.9086557,176.38,176.37,0.03]
[1752792520168,30.14847251,176.38,176.37,0.03]
[1752792521973,35.81804955,176.38,176.37,0.03]
[1752792523096,30.14847251,176.38,176.37,0.03]
[1752792523387,29.58,176.38,176.37,0.03]
[1752792523972,35.79748839,176.4,176.37,0.03]
[1752792524188,30.12847251,176.4,176.37,0.03]
[1752792524374,30.12847251,176.4,176.37,5.81018319]
[1752792526784,30.12847251,176.4,176.38,5.78018319]
[1752792527096,30.10847251,176.42,176.38,5.78018319]
[1752792527669,30.10847251,176.42,176.37,5.69987078]
[1752792527872,30.10847251,176.42,176.38,5.78018319]
[1752792528402,35.77685629,176.42,176.37,0.03]
[1752792528571,35.77685629,176.42,176.38,5.78018319]
[1752792528775,35.77685629,176.42,176.4,5.78018319]
[1752792528776,30.10847251,176.42,176.4,5.78018319]
[1752792529489,30.10847251,176.42,176.39,5.78018319]
[1752792531011,35.77678426,176.42,176.37,0.03]
[1752792531220,35.77678426,176.42,176.37,5.81018319]
[1752792531376,41.55696745,176.42,176.37,0.03]
[1752792531804,35.77678426,176.42,176.37,5.81018319]
[1752792536318,35.77678426,176.42,176.37,0.03]
[1752792536615,41.55696745,176.42,176.37,0.03]
[1752792537528,5.78018319,176.4,176.37,0.03]
[1752792537734,30.02847251,176.39,176.37,0.03]
[1752792538605,5.78018319,176.38,176.37,0.03]
[1752792538805,10.01725179,176.38,176.37,0.03]
[1752792539006,52.80193576,176.38,176.37,0.03]
[1752792539541,58.4715128,176.38,176.37,0.03]
[1752792539948,16.78468397,176.37,176.31,0.2]
[1752792540240,5.78018319,176.32,176.31,0.2]
[1752792540415,35.8086557,176.32,176.31,0.2]
[1752792540614,30.02847251,176.32,176.31,0.2]
[1752792541540,35.69997886,176.32,176.31,0.2]
[1752792542610,30.02847251,176.32,176.31,0.2]
[1752792543330,6.23997886,176.32,176.31,0.2]
[1752792544342,52.48466283,176.32,176.31,0.2]
[1752792545729,46.81315648,176.32,176.31,0.2]
[1752792546036,30.02847251,176.32,176.31,0.2]
[1752792546423,35.69997886,176.32,176.31,0.2]
[1752792547735,30.02847251,176.32,176.31,0.2]
[1752792549840,35.69997886,176.32,176.31,0.2]
[1752792550625,36.41997886,176.32,176.31,0.2]
[1752792551840,53.20466283,176.32,176.31,0.2]
[1752792552949,30.02847251,176.32,176.31,0.2]
[1752792553313,0.56847251,176.32,176.31,0.2]
[1752792553532,0.56847251,176.35,176.31,0.89]
[1752792553734,0.72,176.32,176.31,0.2]
[1752792553939,47.55315648,176.32,176.31,0.2]
[1752792554645,67.24144602,176.32,176.31,1e-08]
[1752792554825,26.0,176.3,176.29,0.03]
[1752792555142,26.0,176.27,176.24,0.06]
[1752792555344,30.22847251,176.26,176.24,0.06]
[1752792555528,30.94847251,176.26,176.24,0.06]
[1752792556043,0.72,176.3,176.25,6.47018319]
[1752792556244,30.22847251,176.29,176.27,5.78018319]
[1752792556542,0.72,176.28,176.24,0.06]
[1752792556747,0.56847251,176.27,176.25,5.78018319]
[1752792557828,0.56847251,176.28,176.25,5.78018319]
[1752792558848,30.36,176.27,176.24,0.06]
[1752792559032,1.28847251,176.26,176.24,0.06]
[1752792559854,30.20847251,176.26,176.24,0.06]
[1752792560038,30.92847251,176.26,176.24,0.06]
[1752792560621,0.72,176.25,176.24,0.06]
[1752792561731,30.20847251,176.26,176.24,0.06]
[1752792562860,30.20847251,176.26,176.24,0.75]
[1752792563144,30.20847251,176.26,176.24,6.53018319]
[1752792563653,35.88204314,176.26,176.24,0.06]
[1752792563830,0.69,176.25,176.24,0.06]
[1752792565439,6.36375886,176.25,176.24,0.06]
[1752792566854,0.69,176.25,176.24,0.06]
[1752792567358,6.47018319,176.25,176.24,0.06]
[1752792567554,23.25486716,176.25,176.24,0.06]
[1752792567744,29.03289137,176.25,176.24,0.06]
[1752792568839,34.70665023,176.25,176.24,0.06]
[1752792569156,16.78468397,176.21,176.19,0.2]
[1752792569457,36.0886557,176.2,176.19,0.2]
[1752792569753,30.99847251,176.2,176.19,0.2]
[1752792570338,36.7786557,176.2,176.19,0.2]
[1752792570532,29.74,176.22,176.19,12.32587317]
[1752792570750,29.74,176.22,176.2,0.67]
[1752792571056,29.76,176.23,176.2,6.45018319]
[1752792571233,0.56847251,176.22,176.2,6.45018319]
[1752792571429,0.72,176.29,176.21,6.45018319]
[1752792571634,0.72,176.29,176.28,5.78018319]
[1752792571635,0.03,176.29,176.28,5.78018319]
[1752792571948,0.03,176.29,176.28,6.45018319]
[1752792572852,0.03,176.29,176.27,5.78018319]
[1752792573437,0.03,176.29,176.28,5.78018319]
[1752792574042,30.48,176.29,176.24,6.45018319]
[1752792574251,1.25847251,176.28,176.24,6.45018319]
[1752792574452,0.69,176.27,176.23,5.78018319]
[1752792574761,0.56847251,176.26,176.23,5.78018319]
[1752792575463,0.56847251,176.26,176.24,5.78018319]
[1752792575864,6.24197253,176.26,176.23,6.45018319]
[1752792576059,6.24196948,176.26,176.21,5.78018319]
[1752792576238,0.69,176.25,176.2,5.78018319]
[1752792576443,0.56847251,176.24,176.2,6.45018319]
[1752792576757,0.56847251,176.24,176.21,0.67]
[1752792576950,0.56847251,176.24,176.21,6.45018319]
[1752792577747,0.56847251,176.24,176.22,5.78018319]
[1752792577944,29.72,176.25,176.22,6.45018319]
[1752792578140,29.72,176.25,176.23,6.45018319]
[1752792579167,29.72,176.25,176.23,0.67]
[1752792579365,29.72,176.25,176.23,5.78018319]
[1752792579869,29.72,176.25,176.21,6.45018319]
[1752792580177,30.28847251,176.25,176.22,0.67]
[1752792580547,30.28847251,176.25,176.23,6.45018319]
[1752792580747,29.72,176.25,176.24,0.67]
[1752792580976,0.56847251,176.27,176.24,6.45018319]
[1752792581137,0.59847251,176.29,176.26,5.78018319]
[1752792581337,6.27103683,176.29,176.27,5.78018319]
[1752792581559,6.27103683,176.29,176.26,6.45018319]
[1752792582074,6.27103683,176.29,176.27,5.78018319]
[1752792582255,6.27103683,176.29,176.26,6.45018319]
[1752792582573,0.59847251,176.29,176.27,5.78018319]
[1752792583257,6.27097191,176.29,176.27,5.78018319]
[1752792583470,6.27097191,176.29,176.26,6.45018319]
[1752792583772,0.59847251,176.29,176.26,6.45018319]
[1752792583973,0.59847251,176.29,176.27,5.78018319]
[1752792585759,0.59847251,176.29,176.26,6.45018319]
[1752792587044,0.03,176.29,176.28,5.78018319]
[1752792587244,0.03,176.29,176.28,6.45018319]
[1752792587450,0.03,176.29,176.28,12.23036638]
[1752792587785,0.03,176.29,176.28,12.12297647]
[1752792592076,0.03,176.29,176.28,5.78018319]
[1752792592267,0.03,176.29,176.27,5.78018319]
[1752792594667,0.03,176.29,176.26,5.78018319]
[1752792595186,0.7,176.29,176.26,5.78018319]
[1752792595860,0.03,176.29,176.26,6.47018319]
[1752792597769,0.03,176.29,176.26,5.78018319]
[1752792597971,0.03,176.29,176.26,6.47018319]
[1752792598859,0.03,176.29,176.27,5.78018319]
[1752792599054,0.03,176.29,176.27,6.47018319]
[1752792599276,0.03,176.29,176.28,0.69]
[1752792599863,0.03,176.29,176.28,6.47018319]
[1752792600070,0.03,176.29,176.28,0.69]
[1752792600271,0.03,176.29,176.28,5.78018319]
[1752792600670,0.03,176.29,176.27,5.78018319]
[1752792600876,1.26847251,176.29,176.26,5.78018319]
[1752792601058,0.59847251,176.29,176.26,5.78018319]
[1752792601264,0.59847251,176.29,176.27,6.47018319]
[1752792601882,0.03,176.29,176.27,6.47018319]
[1752792602084,0.56847251,176.28,176.27,6.47018319]
[1752792602388,6.24134851,176.28,176.26,5.78018319]
[1752792602584,0.67,176.27,176.24,5.78018319]
[1752792602776,0.56847251,176.26,176.24,6.47018319]
[1752792602982,0.56847251,176.27,176.25,5.78018319]
[1752792603362,0.56847251,176.27,176.21,0.06]
[1752792603674,6.91170471,176.27,176.24,5.78018319]
[1752792603857,6.24170471,176.27,176.24,5.78018319]
[1752792604060,6.24170471,176.27,176.24,6.47018319]
[1752792604259,6.24170471,176.27,176.25,6.47018319]
[1752792604486,0.56847251,176.27,176.25,6.47018319]
[1752792604782,0.56847251,176.27,176.26,5.78018319]
[1752792604987,0.56847251,176.27,176.25,6.47018319]
[1752792605281,0.03,176.29,176.26,6.47018319]
[1752792605479,0.03,176.29,176.28,5.78018319]
[1752792607264,0.03,176.29,176.28,6.47018319]
[1752792608284,0.03,176.29,176.28,12.14297647]
[1752792609868,0.03,176.29,176.28,0.69]
[1752792610083,0.03,176.29,176.28,32.47018319]
[1752792611295,0.03,176.29,176.28,0.69]
[1752792611467,0.03,176.29,176.24,5.73401737]
[1752792611668,0.7,176.29,176.25,6.47018319]
[1752792611882,0.56847251,176.28,176.25,0.69]
[1752792612091,0.56847251,176.28,176.26,5.78018319]
[1752792612495,0.56847251,176.28,176.26,6.47018319]
[1752792612714,0.03,176.29,176.26,6.47018319]
[1752792612904,0.56847251,176.28,176.26,6.47018319]
[1752792613399,0.56847251,176.28,176.26,5.78018319]
[1752792613784,0.59847251,176.29,176.26,5.78018319]
[1752792614180,0.03,176.29,176.27,0.69]
[1752792614397,0.03,176.29,176.27,5.78018319]
[1752792614989,0.56847251,176.28,176.25,6.47018319]
[1752792615498,0.67,176.27,176.24,0.06]
[1752792615679,0.56847251,176.26,176.24,0.06]
[1752792616195,0.56847251,176.27,176.24,6.53018319]
[1752792616404,0.56847251,176.27,176.26,5.78018319]
[1752792616575,0.59847251,176.29,176.26,5.78018319]
[1752792616774,0.59847251,176.29,176.26,6.47018319]
[1752792617198,0.59847251,176.29,176.26,0.69]
[1752792617380,0.59847251,176.29,176.26,6.47018319]
[1752792617997,0.59847251,176.29,176.26,0.69]
[1752792618201,0.59847251,176.29,176.26,6.47018319]
[1752792619184,6.94107574,176.29,176.25,5.78018319]
[1752792619397,6.27107574,176.29,176.25,6.47018319]
[1752792619578,6.27107574,176.29,176.26,0.69]
[1752792619774,0.59847251,176.29,176.26,0.69]
[1752792620010,0.59847251,176.29,176.27,0.69]
[1752792620183,0.03,176.29,176.27,0.69]
[1752792620896,0.03,176.29,176.25,6.47018319]
[1752792621089,0.7,176.29,176.25,6.47018319]
[1752792621298,0.56847251,176.28,176.25,6.47018319]
[1752792621676,0.56847251,176.28,176.25,0.69]
[1752792621906,0.67,176.27,176.24,0.06]
[1752792622076,0.56847251,176.26,176.24,0.06]
[1752792622280,6.24192927,176.26,176.24,0.06]
[1752792623575,0.71,176.25,176.24,0.06]
[1752792624290,6.24192927,176.26,176.24,0.06]
[1752792624492,6.95192927,176.26,176.24,0.06]
[1752792624701,6.49018319,176.25,176.24,0.06]
[1752792624908,0.71,176.25,176.24,0.06]
[1752792626175,6.24192927,176.26,176.24,0.06]
[1752792626879,6.24192927,176.26,176.24,6.53018319]
[1752792626880,0.56847251,176.26,176.24,6.53018319]
[1752792627183,6.24194506,176.26,176.24,0.75]
[1752792627512,6.24194506,176.26,176.24,0.06]
[1752792627879,0.71,176.25,176.24,0.06]
[1752792628185,6.49018319,176.25,176.24,0.06]
[1752792628812,18.43324205,176.25,176.24,0.06]
[1752792629017,19.94064205,176.25,176.24,0.06]
[1752792631805,36.72532602,176.25,176.24,0.06]
[1752792632591,16.78468397,176.24,176.21,0.06]
[1752792632800,22.56486716,176.22,176.21,0.06]
[1752792632998,28.23959193,176.22,176.21,0.06]
[1752792633203,54.94959193,176.22,176.21,0.06]
[1752792633378,42.78468397,176.2,176.19,0.2]
[1752792633585,78.75333967,176.2,176.19,0.2]
[1752792633798,79.46333967,176.2,176.19,0.2]
[1752792635010,85.13870856,176.2,176.19,0.2]
[1752792637605,6.358,176.18,176.16,0.06]
[1752792637818,61.9486557,176.17,176.16,0.06]
[1752792638018,62.6586557,176.17,176.16,1e-08]
[1752792639294,68.33499105,176.17,176.16,1e-08]
[1752792639610,85.11967502,176.17,176.16,1e-08]
[1752792639905,26.0,176.14,176.13,0.2]
[1752792640119,42.78468397,176.1,176.06,0.2]
[1752792640288,78.71333967,176.1,176.06,0.2]
[1752792640612,91.67422286,176.1,176.06,0.2]
[1752792640797,80.11385648,176.1,176.06,0.2]
[1752792640997,74.88953889,176.1,176.06,0.2]
[1752792641201,5.78018319,176.07,176.06,0.2]
[1752792641402,41.84821496,176.07,176.06,0.2]
[1752792641602,42.55821496,176.07,176.06,1e-08]
[1752792641992,26.0,176.04,176.03,0.2]
[1752792642205,62.1886557,176.04,176.03,1e-08]
[1752792642399,64.4435557,176.04,176.03,1e-08]
[1752792642594,70.9745557,176.04,176.03,1e-08]
[1752792642911,75.48788291,176.04,176.03,1e-08]
[1752792643215,70.9745557,176.04,176.03,1e-08]
[1752792643404,70.9745557,176.04,176.01,0.06]
[1752792643405,5.78018319,176.02,176.01,0.06]
[1752792643713,62.2086557,176.02,176.01,1e-08]
[1752792643906,62.9186557,176.02,176.01,1e-08]
[1752792644105,36.9186557,176.02,176.01,1e-08]
[1752792644505,42.78468397,175.98,175.92,0.75]
[1752792644811,79.01333967,175.98,175.92,0.75]
[1752792644984,79.72333967,175.98,175.92,0.75]
[1752792645388,84.69580358,175.98,175.94,0.69]
[1752792645708,84.69580358,175.98,175.92,5.84018319]
[1752792645709,5.78018319,176.03,175.97,6.53018319]
[1752792646008,0.56847251,176.03,175.98,0.69]
[1752792646187,0.56847251,176.03,176.01,5.78018319]
[1752792646383,0.56847251,176.03,176.02,0.69]
[1752792646610,0.56847251,176.05,176.02,0.69]
[1752792646912,0.56847251,176.04,176.02,0.69]
[1752792647704,0.56847251,176.05,176.02,0.69]
[1752792647895,0.56847251,176.05,176.0,6.47018319]
[1752792648098,6.3486557,176.05,176.01,0.69]
[1752792648312,0.56847251,176.05,176.02,0.69]
[1752792648505,6.3486557,176.05,176.0,5.78018319]
[1752792648704,0.56847251,176.05,176.03,0.69]
[1752792649015,0.56847251,176.05,176.04,0.69]
[1752792649513,16.2528016,176.05,175.98,0.69]
[1752792649819,9.29412461,175.99,175.97,0.06]
[1752792650016,39.78259712,175.98,175.97,0.06]
[1752792650322,40.49259712,175.98,175.97,0.06]
[1752792650695,30.48847251,175.98,175.97,0.06]
[1752792651011,39.78259712,175.98,175.97,0.06]
[1752792651208,0.56847251,175.98,175.97,0.06]
[1752792651413,44.89658852,175.98,175.97,0.06]
[1752792651598,39.21412461,175.98,175.97,0.06]
[1752792651798,9.29412461,175.98,175.97,0.06]
[1752792651999,39.21412461,175.98,175.97,0.06]
[1752792652219,44.89658852,175.98,175.97,0.06]
[1752792652601,0.56847251,175.99,175.97,0.06]
[1752792652808,29.92,175.98,175.97,0.75]
[1752792653202,29.92,175.98,175.97,0.06]
[1752792653691,61.68127249,175.98,175.97,0.06]
[1752792654423,62.38127249,175.98,175.97,0.06]
[1752792656020,88.38127249,175.98,175.97,0.06]
[1752792656418,58.46127249,175.98,175.97,0.06]
[1752792656721,88.36127249,175.98,175.97,0.06]
[1752792657629,58.46127249,175.98,175.97,0.06]
[1752792657801,88.36127249,175.98,175.97,0.06]
[1752792658725,87.64127249,175.98,175.97,0.06]
[1752792658921,88.209745,175.98,175.97,0.06]
[1752792659140,88.909745,175.98,175.97,0.06]
[1752792659907,88.34127249,175.98,175.97,0.06]
[1752792660251,62.34127249,175.98,175.97,0.06]
[1752792660605,62.909745,175.98,175.97,0.06]
[1752792660807,0.56847251,175.98,175.97,0.06]
[1752792661006,46.12506103,175.98,175.97,0.06]
[1752792662249,62.909745,175.98,175.97,0.06]
[1752792662430,68.936045,175.98,175.97,0.06]
[1752792662748,39.056045,175.98,175.97,0.06]
[1752792662948,68.936045,175.98,175.97,0.06]
[1752792663621,9.29412461,175.93,175.92,0.06]
[1752792663822,44.8782035,175.93,175.92,0.06]
[1752792664834,29.9,175.93,175.92,0.06]
[1752792665033,39.19412461,175.93,175.92,0.06]
[1752792665338,29.9,175.93,175.92,0.77]
[1752792665643,30.46847251,175.93,175.92,0.77]
[1752792666150,0.56847251,175.93,175.92,0.77]
[1752792666350,29.96,175.93,175.92,15.74852661]
[1752792666535,29.96,175.94,175.92,15.74852661]
[1752792666723,29.98,175.95,175.93,9.29412461]
[1752792666925,29.98,175.95,175.94,0.71]
[1752792667922,45.5260513,175.95,175.92,0.06]
[1752792668458,39.84259712,175.95,175.92,0.06]
[1752792668631,45.52605086,175.95,175.92,0.06]
[1752792668833,39.84259712,175.95,175.92,0.06]
[1752792669049,9.29412461,175.94,175.92,0.77]
[1752792669266,30.58847251,175.93,175.92,0.06]
[1752792669753,39.88259712,175.93,175.92,0.06]
[1752792670136,36.2725514,175.93,175.92,0.06]
[1752792670344,45.56667601,175.93,175.92,0.06]
[1752792670831,46.26667601,175.93,175.92,0.06]
[1752792671228,39.88259712,175.93,175.92,0.06]
[1752792671427,30.56847251,175.93,175.92,0.77]
[1752792671649,30.54847251,175.93,175.92,0.77]
[1752792672155,0.56847251,175.93,175.92,0.77]
[1752792672456,0.56847251,175.94,175.92,6.45411654]
[1752792672644,30.54847251,175.93,175.92,0.06]
[1752792672851,57.32728109,175.93,175.92,0.06]
[1752792673556,27.34728109,175.93,175.92,0.06]
[1752792673736,49.58065648,175.93,175.92,0.06]
[1752792673940,58.87478109,175.93,175.92,0.06]
[1752792674133,64.55885998,175.93,175.92,0.06]
[1752792674954,56.62728109,175.93,175.92,0.06]
[1752792675152,0.7,175.99,175.92,10.06412461]
[1752792675336,36.23094788,175.98,175.93,10.00412461]
[1752792675538,36.23094788,175.98,175.94,0.71]
[1752792676044,45.52507249,175.98,175.94,0.71]
[1752792676741,45.52507249,175.98,175.92,5.74430347]
[1752792676742,0.56847251,175.98,175.95,0.71]
[1752792676938,29.98,175.97,175.95,0.71]
[1752792677147,0.56847251,175.96,175.93,10.00412461]
[1752792677327,29.98,175.95,175.94,0.71]
[1752792677534,29.98,175.95,175.94,10.00412461]
[1752792678057,29.98,175.95,175.94,15.68788043]
[1752792678559,0.56847251,175.99,175.94,15.68788043]
[1752792678863,29.98,175.98,175.96,9.29412461]
[1752792679034,29.98,175.98,175.97,10.00412461]
[1752792679450,29.96,176.0,175.97,10.00412461]
[1752792679653,29.96,176.0,175.98,10.00412461]
[1752792679850,29.96,176.0,175.99,0.71]
[1752792680043,29.96,176.0,175.98,0.71]
[1752792680562,29.96,176.0,175.99,0.71]
[1752792681856,29.96,176.0,175.99,10.00412461]
[1752792682034,29.96,176.0,175.99,15.68626564]
[1752792682235,0.03,176.01,175.99,15.68626564]
[1752792682533,0.03,176.01,176.0,10.57230642]
[1752792683736,0.03,176.04,176.03,9.29412461]
[1752792684159,0.03,176.04,176.03,15.67497446]
[1752792685040,0.03,176.04,176.03,0.7]
[1752792685241,0.03,176.04,176.01,9.29412461]
[1752792685560,0.03,176.04,176.01,9.99412461]
[1752792685756,0.03,176.04,176.03,9.29412461]
[1752792686150,0.03,176.04,176.03,9.99412461]
[1752792686336,0.03,176.04,176.03,15.67497446]
[1752792687038,0.03,176.04,176.03,9.99412461]
[1752792687239,0.03,176.04,176.03,15.67497446]
[1752792688859,0.03,176.04,176.03,17.24407446]
[1752792689060,1e-08,176.04,176.03,32.90589907]
[1752792689244,0.03,176.09,176.06,26.0]
[1752792689455,0.03,176.09,176.08,9.29412461]
[1752792690141,0.03,176.09,176.08,15.67336132]
[1752792690934,0.03,176.09,176.08,0.7]
[1752792691139,0.03,176.09,176.06,26.0]
[1752792691350,0.03,176.09,176.06,35.29412461]
[1752792691546,0.03,176.09,176.06,35.99412461]
[1752792691757,0.03,176.09,176.06,9.99412461]
[1752792692640,0.03,176.09,176.07,9.99412461]
[1752792692855,0.03,176.09,176.08,9.29412461]
[1752792693040,0.03,176.09,176.08,9.99412461]
[1752792694784,0.03,176.09,176.08,15.67336132]
[1752792695144,0.03,176.09,176.08,9.99412461]
[1752792696061,0.03,176.09,176.08,15.67336132]
[1752792696266,0.03,176.09,176.04,14.82899895]
[1752792696267,39.85412461,176.09,176.04,0.06]
[1752792696566,9.29412461,176.05,176.04,0.06]
[1752792696959,9.98412461,176.05,176.04,0.06]
[1752792697467,1.5828,176.04,175.93,0.7]
[1752792697667,9.29412461,175.99,175.93,9.99412461]
[1752792697865,0.69,175.99,175.94,9.29412461]
[1752792698062,9.29412461,176.0,175.95,9.99412461]
[1752792698257,15.66561997,176.01,175.95,15.67748163]
[1752792698461,14.97561997,176.01,175.96,0.7]
[1752792698649,0.56847251,176.0,175.96,9.29412461]
[1752792698849,9.86259712,176.0,175.96,0.7]
[1752792699270,9.29412461,175.98,175.93,0.7]
[1752792699470,9.29412461,175.98,175.92,9.35412461]
[1752792699471,0.56847251,175.97,175.92,9.35412461]
[1752792699643,9.29412461,175.95,175.92,0.06]
[1752792699849,0.56847251,175.94,175.92,0.06]
[1752792701567,0.56847251,175.95,175.92,0.76]
[1752792701959,6.94206991,175.95,175.92,0.06]
[1752792702272,0.69,175.94,175.92,0.06]
[1752792702475,0.56847251,175.93,175.92,0.06]
[1752792702800,0.56847251,175.94,175.92,0.06]
[1752792703549,0.56847251,175.95,175.92,0.06]
[1752792703751,6.25209547,175.95,175.92,0.06]
[1752792704059,6.94209547,175.95,175.92,0.06]
[1752792704865,0.56847251,175.95,175.92,0.06]
[1752792705374,6.25191204,175.95,175.92,0.06]
[1752792705554,6.94191204,175.95,175.92,0.06]
[1752792705950,6.25191204,175.95,175.92,0.06]
[1752792706166,9.98412461,175.94,175.92,0.06]
[1752792706371,0.56847251,175.93,175.92,0.06]
[1752792706549,31.63847251,175.93,175.92,0.06]
[1752792707354,40.93259712,175.93,175.92,0.06]
[1752792707681,43.84092956,175.93,175.92,0.06]
[1752792707864,49.52500845,175.93,175.92,0.06]
[1752792708978,66.21088384,175.93,175.92,0.06]
[1752792709170,75.50500845,175.93,175.92,0.06]
[1752792709973,92.30969242,175.93,175.92,0.06]
[1752792710170,92.30969242,175.93,175.92,1e-08]
[1752792710374,42.78468397,175.9,175.89,1e-08]
[1752792710676,23.16368397,175.86,175.79,0.1]
[1752792710877,26.07880858,175.8,175.79,0.1]
[1752792711083,56.45880858,175.8,175.79,0.1]
[1752792711654,57.14880858,175.8,175.79,0.1]
[1752792711957,53.5429661,175.8,175.79,0.1]
[1752792712162,30.36,175.81,175.79,0.8]
[1752792712375,30.92847251,175.83,175.8,9.99412461]
[1752792712559,30.36,175.83,175.81,9.99412461]
[1752792712873,30.36,175.83,175.81,0.7]
[1752792713076,30.36,175.83,175.82,0.7]
[1752792713654,59.30276314,175.87,175.82,9.99412461]
[1752792713655,0.56847251,175.86,175.82,9.99412461]
[1752792713957,0.56847251,175.86,175.83,0.67]
[1752792714159,10.56259712,175.86,175.81,0.67]
[1752792714361,26.07880858,175.83,175.79,0.1]
[1752792714570,9.29412461,175.81,175.79,0.1]
[1752792714758,30.90847251,175.82,175.79,0.1]
[1752792714759,17.35315648,175.8,175.79,0.1]
[1752792714958,18.05315648,175.8,175.79,0.1]
[1752792715567,0.56847251,175.8,175.79,0.1]
[1752792715751,9.86259712,175.81,175.79,0.1]
[1752792716155,0.56847251,175.81,175.79,0.1]
[1752792716364,1.06847251,175.81,175.79,0.1]
[1752792716572,0.56847251,175.81,175.79,0.1]
[1752792716773,30.90847251,175.83,175.8,9.96412461]
[1752792717077,30.90847251,175.83,175.81,9.29412461]
[1752792717276,30.90847251,175.83,175.8,0.67]
[1752792717277,30.90847251,175.83,175.8,9.96412461]
[1752792717661,30.90847251,175.83,175.79,0.1]
[1752792717662,0.7,175.82,175.79,0.1]
[1752792717862,40.20259712,175.83,175.79,0.1]
[1752792717863,6.25647294,175.81,175.79,0.1]
[1752792718060,39.63412461,175.8,175.79,0.1]
[1752792718264,40.33412461,175.8,175.79,0.1]
[1752792719258,31.04,175.8,175.79,0.1]
[1752792719459,30.34,175.8,175.79,0.1]
[1752792719663,0.56847251,175.81,175.79,0.1]
[1752792719863,30.32,175.8,175.79,0.1]
[1752792720476,9.99412461,175.8,175.79,0.1]
[1752792720786,9.99412461,175.8,175.62,38.10976047]
[1752792720787,16.78468397,175.73,175.62,38.10976047]
[1752792720968,9.29412461,175.69,175.63,9.29412461]
[1752792721173,0.56847251,175.7,175.66,9.29412461]
[1752792721359,0.56847251,175.7,175.67,0.67]
[1752792721568,0.56847251,175.71,175.68,9.29412461]
[1752792721772,1.5437,175.77,175.7,9.29412461]
[1752792721986,0.56847251,175.78,175.75,9.29412461]
[1752792722293,0.56847251,175.78,175.75,0.67]
[1752792723191,0.56847251,175.77,175.75,0.67]